Cogmind - Beta 13 @@@ ROGUE MODE // 2024.04.01 @ 04:23:18 Player: Auto Result: Destroyed by G-34 Mercenary with Small Laser Performance ------------- Evolutions (0) 0 Regions Visited (2) 400 Robots Destroyed (26) 130 Value Destroyed (927) 927 Prototype IDs (0) 0 Alien Tech Used (0) 0 Bonus (-14) -14 TOTAL SCORE: 1443 Bonus ------- Friendly Fire -14 Cogmind --------- Core Integrity 0/250 Matter 297/300 Energy 236/250 System Corruption 0% Temperature Cool (12) Movement Treading (160) Location -10/Mines Parts ------- > --- POWER (1) -------- Ion Engine > --- PROPULSION (2) --- Light Treads Light Treads > --- UTILITY (2) ------ Improved Heat Sink Medium Storage Unit > --- WEAPON (2) ------- Beam Rifle Heavy Assault Rifle > --- INVENTORY (10) --- Light Ion Engine Light Nuclear Core Aluminum Leg Aluminum Leg Flight Unit Flight Unit Power Shielding Small Laser Small Laser Grenade Launcher Peak State ------------ > --- POWER ------------ Light Nuclear Core > --- PROPULSION ------- Light Treads Light Treads > --- UTILITY ---------- Improved Heat Sink Medium Storage Unit > --- WEAPON ----------- Beam Rifle Heavy Assault Rifle > --- INVENTORY -------- Ion Engine Light Ion Engine Aluminum Leg Aluminum Leg Flight Unit Flight Unit Power Shielding Small Laser Small Laser Grenade Launcher [Rating: 14] Favorites ----------- Power Ion Engine Engine Ion Engine Power Core Light Nuclear Core Propulsion Light Treads Treads Light Treads Leg Aluminum Leg Utility Improved Heat Sink Device Improved Heat Sink Storage Small Storage Unit Weapon Small Laser Energy Gun Small Laser Ballistic Gun Heavy Assault Rifle Build | -11 -10 -10 ------- Run | Yrd Mat Min Slots Evolved . | . . . Power . | . . . Propulsion . | . . . Utility . | . . . Weapon . | . . . Parts Attached 33 | 6 18 9 Power 8 | 1 5 2 Engine 7 | 1 5 1 Core 1 | . . 1 Reactor . | . . . Propulsion 10 | 2 4 4 Treads 5 | 2 1 2 Leg 5 | . 3 2 Wheel . | . . . Hover . | . . . Flight . | . . . Utility 5 | 1 4 . Device 3 | . 3 . Storage 2 | 1 1 . Processor . | . . . Hackware . | . . . Protection . | . . . Artifact . | . . . Weapon 10 | 2 5 3 Energy Gun 9 | 2 5 2 Energy Cannon . | . . . Ballistic Gun 1 | . . 1 Ballistic Cannon . | . . . Launcher . | . . . Special Weapon . | . . . Impact Weapon . | . . . Slashing Weapon . | . . . Piercing Weapon . | . . . Special Melee Weapon . | . . . Unidentified Prototypes . | . . . Parts Lost . | . . . Power . | . . . Propulsion . | . . . Utility . | . . . Weapon . | . . . Highest Loss Streak . | . . . To Critical Strikes . | . . . Average Slot Usage (%) 99 | . 99 99 Engine 11 | . 13 6 Core 2 | . . 7 Treads 17 | . 13 22 Leg 10 | . 14 5 Device 13 | . 13 14 Storage 14 | . 14 14 Energy Gun 23 | . 27 16 Ballistic Gun 4 | . . 11 Naked Turns . | . . . Heaviest Build 22 | 12 18 22 Greatest Support 40 | 40 40 40 Greatest Overweight (x) 1 | . . 1 Average Overweight (x) . | . . . Largest Inventory Capacity 10 | 8 10 10 Average Capacity 8 | 6 8 10 Most Carried 10 | 8 9 10 Average Carried 8 | 4 7 9 Final Capacity 10 | 8 10 10 Final Carried 10 | 6 9 10 Class Distribution -------------------- 75% | Scavenger-Mutant 24% | Mutant Dominant Class ---------------- Scavenger-Mutant | -10/Materials Scavenger-Mutant | -10/Mines Resources | -11 -10 -10 ----------- Run | Yrd Mat Min Matter Collected 565 | 220 200 145 Remotely . | . . . Salvage Created 1090 | . 703 387 Parts 57 | . 36 21 Haulers Intercepted . | . . . Recyclers Shooed 3 | . 3 . Parts Field Recycled . | . . . Retrieved Matter . | . . . Parts Self-Destructed . | . . . Prevented . | . . . Kills | -11 -10 -10 ------- Run | Yrd Mat Min Combat Hostiles Destroyed 23 | . 15 8 Guns 23 | . 15 8 Classes Destroyed 4 | . 3 1 Mechanic 1 | . 1 . Operator 2 | . 2 . Grunt 21 | . 15 6 Sentry 2 | . . 2 Best Kill Streak 2 | . 2 2 Combat Bots Only 2 | . 2 2 Max Kills in Single Turn 1 | . 1 1 Gunslinging . | . . . Exploded . | . . . Melee . | . . . Uniques/NPCs Destroyed . | . . . Combat | -11 -10 -10 -------- Run | Yrd Mat Min Hostile Shots Fired 124 | . 64 60 Missed 34 | . 17 17 Damage Taken 1146 | . 567 579 Core 260 | . 163 97 Absorbed by Shields . | . . . Regen/Repaired (Parts) 79 | . 79 . Core Remaining (%) 100 | 100 . . Volleys Fired 107 | . 76 31 Largest 2 | . 2 2 Hottest 90 | . 80 90 Shots Fired 214 | . 152 62 Gun 214 | . 152 62 Cannon . | . . . Launcher . | . . . Special . | . . . Kinetic 16 | . . 16 Thermal 198 | . 152 46 Explosive . | . . . Electromagnetic . | . . . Robot Hit Streak 34 | . 34 8 Robot Miss Streak 9 | . 9 2 Penetration Max . | . . . Secondary Targets . | . . . Shots Hit Robots 139 | . 95 44 Core Hits 63 | . 44 19 Critical Kills . | . . . Critical Parts Destroyed . | . . . Critical Strikes 1 | . . 1 Burn 1 | . . 1 Melee Attacks . | . . . Impact . | . . . Slashing . | . . . Piercing . | . . . Sneak Attacks . | . . . Combat Hostiles . | . . . Follow-up Attacks . | . . . Damage Inflicted 1766 | . 1145 621 Guns 1746 | . 1125 621 Cannons . | . . . Explosions . | . . . Melee . | . . . Ramming 20 | . 20 . Kinetic 208 | . . 208 Thermal 1538 | . 1125 413 Explosive . | . . . Electromagnetic . | . . . Impact . | . . . Slashing . | . . . Piercing . | . . . Highest Corruption . | . . . Average Corruption . | . . . Corruption Purged . | . . . Corruption Blocked . | . . . Overload Shots . | . . . Overflow Damage . | . . . Projectiles . | . . . Explosions . | . . . Melee . | . . . Knockbacks . | . . . Impact . | . . . Kinetic . | . . . Secondary . | . . . Self-Inflicted Damage . | . . . Shots . | . . . Rammed 3 | . 3 . Targets Rammed 4 | . 4 . Kicked 1 | . 1 . Crushed . | . . . Highest Temperature 144 | . 144 34 Average Temperature 37 | . 47 13 Received Heat Transfer 660 | . 354 306 Siege Activations . | . . . Robots Corrupted . | . . . Combat Hostiles . | . . . Parts Fried . | . . . Impact Corruptions . | . . . Robots Melted . | . . . Combat Hostiles . | . . . Parts Melted 3 | . 2 1 Heat Transferred 3690 | . 2575 1115 Parts Sabotaged . | . . . Parts Stolen . | . . . Parts Stripped . | . . . Power Chain Reactions . | . . . Alert | -11 -10 -10 ------- Run | Yrd Mat Min Peak Influence 225 | . 225 146 Initial 41 | . . 41 Average 86 | . 88 92 Maximum Alert Level 1 | . 1 . Low Security (%) 95 | 100 91 100 Level 1 4 | . 8 . Level 2 . | . . . Level 3 . | . . . Level 4 . | . . . Level 5 . | . . . High Security . | . . . Max Security . | . . . Squads Dispatched 6 | . 5 1 Investigation 4 | . 3 1 Extermination . | . . . Reinforcement 2 | . 2 . Assault . | . . . Garrison . | . . . Intercept . | . . . Searches Triggered . | . . . Construction Impeded . | . . . Haulers Reinforced . | . . . Active Scanning Responses . | . . . Cargo Convoy Interrupts . | . . . Stealth | -11 -10 -10 --------- Run | Yrd Mat Min Distress Signals 2 | . 2 . Communications Jammed . | . . . Distress Signals . | . . . Times Spotted 60 | . 48 12 Peak Tracking Total 4 | . 4 2 Tactical Retreats 3 | . 2 1 Traps | -11 -10 -10 ------- Run | Yrd Mat Min Traps Triggered 2 | . 2 . Indirectly . | . . . Trap Hack Attempts . | . . . Triggered . | . . . Disarmed . | . . . Reprogrammed . | . . . Reused . | . . . Traps Extracted . | . . . Installed . | . . . Triggered . | . . . Machines | -11 -10 -10 ---------- Run | Yrd Mat Min Machines Disabled . | . . . Max in Single Turn . | . . . Machines Repaired . | . . . Machines Dismantled . | . . . Machines Sabotaged . | . . . Overloaded Fab Kills . | . . . Hacking | -11 -10 -10 --------- Run | Yrd Mat Min Machines Accessed 6 | . 4 2 Terminals 4 | . 2 2 Fabricators . | . . . Repair Stations 1 | . 1 . Recycling Units 1 | . 1 . Scanalyzers . | . . . Garrison Access . | . . . Total Hacks 29 | . 22 7 Successful 15 | . 14 1 Failed 14 | . 8 6 Catastrophic 3 | . . 3 Database Lockouts . | . . . Manual 18 | . 11 7 Terminals 19 | . 12 7 Fabricators . | . . . Repair Stations 6 | . 6 . Recycling Units 4 | . 4 . Scanalyzers . | . . . Garrison Access . | . . . Terminal Hacks 3 | . 2 1 Branch Access Points 1 | . . 1 Terminal Index 1 | . 1 . Hauler Manifests 1 | . 1 . Fabricator Hacks . | . . . Repair Station Hacks 6 | . 6 . Scan Component 3 | . 3 . Repair 3 | . 3 . Recycling Unit Hacks 2 | . 2 . Retrieve Components 2 | . 2 . Scanalyzer . | . . . Garrison Access Hacks . | . . . Unauthorized Hacks 4 | . 4 . Terminals 3 | . 3 . Botnet 2 | . 2 . Operators 1 | . 1 . Fabricators . | . . . Repair Stations . | . . . Recycling Units 1 | . 1 . Reject 1 | . 1 . Scanalyzers . | . . . Garrison Access . | . . . Data Cores Recovered . | . . . Used . | . . . Hacking Detections 6 | . 4 2 Full Trace Events 4 | . 3 1 Feedback Events . | . . . Feedback Blocked . | . . . Robot Schematics Acquired . | . . . Robots Built . | . . . Authchips . | . . . Time . | . . . Total Robot Build Rating . | . . . Part Schematics Acquired . | . . . Parts Built . | . . . Authchips . | . . . Time . | . . . Total Part Build Rating . | . . . Parts Repaired 3 | . 3 . Time 78 | . 78 . Parts Recycled . | . . . Recycled Matter . | . . . Retrieved Matter . | . . . Retrieved Components 13 | . 13 . Parts Scanalyzed . | . . . Part Schematics Acquired . | . . . Parts Damaged . | . . . Bothacking | -11 -10 -10 ------------ Run | Yrd Mat Min Used RIF Installer . | . . . Robots Hacked . | . . . Non-combat . | . . . Combat . | . . . Robot Hacks Applied . | . . . Relay Couplers Released . | . . . Fabnet Peak Effective % . | . . . Robots Rewired . | . . . Allies Hacked . | . . . Hacks Repelled . | . . . Allies | -11 -10 -10 -------- Run | Yrd Mat Min Total Allies 2 | . . 2 Largest Group 2 | . . 2 Highest-Rated Group 50 | . . 50 Highest-Rated Ally 31 | . . 31 Total Orders . | . . . Ally Attacks . | . . . Total Damage . | . . . Kills . | . . . Allies Corrupted . | . . . Allies Melted . | . . . Intel | -11 -10 -10 ------- Run | Yrd Mat Min Robot Analysis Total . | . . . Derelict Logs Recovered 2 | . . 2 Drone Launches . | . . . Drone Recoveries . | . . . Exploration | -11 -10 -10 ------------- Run | Yrd Mat Min Turns Passed 2473 | 95 1509 869 Spaces Moved 1181 | 63 664 454 Core 20 | 20 . . Treads 698 | 43 287 368 Legs 463 | . 377 86 Wheels . | . . . Hover . | . . . Flight . | . . . Fastest Speed 50 | 50 120 120 Average Speed 142 | 125 137 153 Slowest Speed 240 | 160 160 240 Overloaded Moves . | . . . Propulsion Burnouts . | . . . Robots Hopped . | . . . Cave-ins Triggered . | . . . Exploration Rate (%) 50 | 4 62 85 Regions Visited 2 Branch Regions 1 Pre-discovered Areas 1 | . . 1 Known Exits Taken . | . . . Unknown Exits Taken 2 | 1 1 . Scrap Searched 2 | . . 2 Spaces Dug . | . . . Terrain Destroyed . | . . . Melee . | . . . Projectile . | . . . AOE . | . . . Terrain Rammed . | . . . Walls Destroyed . | . . . Machines Disabled . | . . . Actions | -11 -10 -10 --------- Run | Yrd Mat Min Total 1761 | 79 1114 568 Wait 389 | . 323 66 Move 1179 | 62 663 454 Hop . | . . . Pick Up 26 | 11 13 2 Fast Attach 9 | 1 4 4 Attach 7 | 5 2 . Detach . | . . . Swap 17 | . 12 5 Drop 23 | . 17 6 Fire 107 | . 76 31 Melee . | . . . Ram . | . . . Kick 1 | . 1 . Crush 3 | . 3 . Escape Stasis . | . . . Rewire . | . . . Trap . | . . . Miscellaneous . | . . . Route ------- -11/Scrapyard -10/Materials (discovered 2 exits: *Min x2) -10/Mines (discovered 2 exits: [*Mat x2]) History --------- Turn | Location | Event 5 | -11/Scrapyard | Discovered new exit (range 15) 96 | -11/Scrapyard | Entered Materials 160 | -10/Materials | Discovered new exit (range 11) 312 | -10/Materials | Build established: Mutant 743 | -10/Materials | Core integrity fell below 50% 915 | -10/Materials | Build established: Scavenger-Mutant 1189 | -10/Materials | Repaired Ion Engine 1216 | -10/Materials | Repaired Ion Engine 1243 | -10/Materials | Repaired Sml. Laser 1559 | -10/Materials | Discovered new exit (range 13) 1605 | -10/Materials | Entered Mines 1626 | -10/Mines | Learned location of Storage (-9) 1756 | -10/Mines | Core integrity fell below 20% 1917 | -10/Mines | Learned location of 1 exit from Materials 2238 | -10/Mines | Discovered new exit (range 6) 2457 | -10/Mines | Discovered new exit (range 7) 2474 | -10/Mines | Destroyed by G-34 Mercenary with Small Laser Last Messages --------------- 02125_ Acquired 24 matter. 02154_ Acquired 10 matter. 02219_ G-47 Trooper destroyed. 02222_ Acquired 9 matter. 02223_ A pair of derelicts emerge from the shadows: "We're, um, lost. You wouldn't happen to know the way out of here, would you?" 02238_ EXIT=FOUND 02254_ Connecting with Terminal... 02254_ Current location identified: Mines 02298_ Searching scrap... 02298_ Found Wheel. 02298_ Found 27 Matter. 02298_ Found 13 Matter. 02457_ EXIT=FOUND 02474_ Connecting with Terminal... >>Access(Branch) No branch access points found. 02474_ ALERT: Suspicious activity at Terminal M002. Dispatching Investigation squad. Map ----- +----------------------------------------------------+ | | | ???????????????????????????? | | ???????????????????????????? | | #??????????????????????????? | | ####???????????????????????? | | ##??????????????????????? | | #??????????????????????? | | #??????????????????????? | | #???????????????????????? | | #?????????????????????????? | | #??????????????????????????? | | ##?????????????????????????? | | #?????????????????????????? | | #?????????????????????????? | | #?????????????????????????? | | ##?????????????????????????? | | #######????????????????????? | | ?????????????? | | ######????????????????????? | | ##?????????????????????????? | | #????????????????????###???? | | #???????????????????? #???? | | #????????????????????# #???? | | #????????????????????# ####? | | ####???????????????### ##T#? | | ### ????????????# @#? | | ?????????# zggg#? | | ?????????# g #? | | ## #?????????# #? | | ##??# ##?????????# #####? | | #?????#???????????# #????? | | #????????????????## #????? | | ##??######????????# #????? | | #??## ##???????# ###????? | | #?## ##??##### #??????? | | ### #??# #??????? | | ?# #### ### #??????? | | ?# ### #??????? | | ## ###### #??????? | | # ##?## #??????? | | #####?## ##??????? | | #????## ##???????? | | # ###??# ##???????? | | ## #??# #???????? | | ## %% #??## #???????? | | ??###= #???### #???????? | | ???## ##????### #???????? | | ????# ####???# #???????? | | ?????# ##??# #???????? | | ?????## #### #???????? | +----------------------------------------------------+ Best States ------------- Heat Dissipation 39 Energy Generation 14 Energy Capacity 250 Matter Stores 300 Matter Capacity 300 Sight Range 16 Robot Scan Range 14 Terrain Scan Density 10 Evasion (%) 55 Recoil Reduction 2 Item Schematics ----------------- None Robot Schematics ------------------ None Fabricated ------------ Nothing Alien Tech Used ----------------- None Achievements -------------- None Challenges ------------ None Game ------ Seed StorageMatterImmobilizer Manual? 0 Play Time 00:20:12 Cumulative 51.5 hours Start 2024.04.01 @ 04:07:16 End 2024.04.01 @ 04:23:18 Sessions 1 Manual Loads 0 Difficulty Rogue Special Mode None Game No. 29 Rogue 4 Adventurer 25 Explorer 0 Win Type - Total 0 Types 0/0/0/0/0/0/0/0/0 Lore% 14 Gallery% 30 Achievement% 28 Wizard Run 0 Options --------- Layout 1 ASCII 0 Keyboard 0 Movement Mouse Keybinds 0 Fullscreen 2 Font 24/Smallcaps Map View 50x35 Zoom Use 0% Tactical HUD 1 Map Filters NONE Filters NONE Steam 1 RUN: d57cac00-108d-4134-b886-6992de18f163